Workbook

Sheet 7月份
A1: 陆 丰 市 2024 年 7 月 财 政 预 算 支 出 完 成 情 况 表
A2: 2024-07-31 | O2: 单位：万元
B3: 年 初 | C3: 年度预算计划 | F3: 累计 | G3: 占年 | H3: 上年 | I3: 比上年 | J3: 比上年 | K3: 本月 | L3: 上年 | M3: 比上年 | N3: 比上年
A4: 支 出 项 目 | B4: 预 算 | F4: 完成 | G4: 预算 | H4: 同期 | I4: 同期增 | J4: 同期增 | K4: 完成 | L4: 同月 | M4: 同月增 | N4: 同月增 | O4: 备 注
B5: 数 | C5: 上级补助 | D5: 上年结转 | E5: 本级安排 | F5: 数 | G5: % | H5: 完成 | I5: 减额 | J5: (减)% | K5: 数 | L5: 完成 | M5: 减额 | N5: (减)%
A6: 201、一般公共服务支出 | B6: =C6+D6+E6 -> 69,512 | C6: 2,326 | D6: 1,760 | E6: 65,426 | F6: 36,571 | G6: =F6/B6*100 -> 52.6 | H6: 49,457 | I6: =F6-H6 -> -12,886 | J6: =I6/H6*100 -> -26.1 | K6: 3,344 | L6: 3,632 | M6: =K6-L6 -> -288 | N6: =M6/L6*100 -> -7.9
A7: 203、国防支出 | B7: 161 | C7: 127 | D7: 34 | F7: 36 | G7: 22.4 | I7: 36 | K7: 0 | L7: 0 | M7: 0
A8: 204、公共安全支出 | B8: 58,090 | C8: 4,995 | E8: 53,095 | F8: 29,826 | G8: 51.3 | H8: 38,288 | I8: -8,462 | J8: -22.1 | K8: 2,317 | L8: 3,129 | M8: -812 | N8: -26.0
A9: 205、教育支出 | B9: 243,007 | C9: 53,874 | D9: 6,314 | E9: 182,819 | F9: 108,299 | G9: 44.6 | H9: 87,843 | I9: 20,456 | J9: 23.3 | K9: 14,293 | L9: 10,599 | M9: 3,694 | N9: 34.9
A10: 206、科学技术支出 | B10: 3,069 | C10: 405 | D10: 1,520 | E10: 1,144 | F10: 468 | G10: 15.2 | H10: 599 | I10: -131 | J10: -21.9 | K10: 150 | L10: 8 | M10: 142 | N10: 1775.0
A11: 207、文化体育与传媒支出 | B11: 10,333 | C11: 1,379 | D11: 14 | E11: 8,940 | F11: 2,984 | G11: 28.9 | H11: 2,861 | I11: 123 | J11: 4.3 | K11: 324 | L11: 295 | M11: 29 | N11: 9.8
A12: 208、社会保障和就业支出 | B12: 178,458 | C12: 85,411 | D12: 1,600 | E12: 91,447 | F12: 111,353 | G12: 62.4 | H12: 99,545 | I12: 11,808 | J12: 11.9 | K12: 8,242 | L12: 7,423 | M12: 819 | N12: 11.0
A13: 210、卫生健康支出 | B13: 140,567 | C13: 93,403 | D13: 1,793 | E13: 45,371 | F13: 110,614 | G13: 78.7 | H13: 106,916 | I13: 3,698 | J13: 3.5 | K13: 2,703 | L13: 2,144 | M13: 559 | N13: 26.1
A14: 211、节能环保支出 | B14: 5,191 | C14: 377 | D14: 1,308 | E14: 3,506 | F14: 1,181 | G14: 22.8 | H14: 1,512 | I14: -331 | J14: -21.9 | K14: 0 | L14: 288 | M14: -288 | N14: -100.0
A15: 212、城乡社区支出 | B15: 21,835 | C15: 912 | D15: 438 | E15: 20,485 | F15: 11,098 | G15: 50.8 | H15: 16,761 | I15: -5,663 | J15: -33.8 | K15: 1,134 | L15: 2,201 | M15: -1,067 | N15: -48.5
A16: 213、农林水支出 | B16: 108,249 | C16: 51,752 | D16: 42,127 | E16: 14,370 | F16: 35,511 | G16: 32.8 | H16: 47,036 | I16: -11,525 | J16: -24.5 | K16: 3,270 | L16: 2,209 | M16: 1,061 | N16: 48.0
A17: 214、交通运输支出 | B17: 34,638 | C17: 16,477 | D17: 8,278 | E17: 9,883 | F17: 5,516 | G17: 15.9 | H17: 47,896 | I17: -42,380 | J17: -88.5 | K17: 327 | L17: 506 | M17: -179 | N17: -35.4
A18: 215、资源勘探工业信息等支出 | B18: 765 | D18: 240 | E18: 525 | F18: 294 | G18: 38.4 | H18: 259 | I18: 35 | J18: 13.5 | K18: 24 | L18: 36 | M18: -12 | N18: -33.3
A19: 216、商业服务业等支出 | B19: 872 | D19: 110 | E19: 762 | F19: 714 | G19: 81.9 | H19: 717 | I19: -3 | J19: -0.4 | K19: 60 | L19: 67 | M19: -7 | N19: -10.4
A20: 217、金融支出 | B20: 0 | F20: 1 | H20: 11,801 | I20: -11,800 | J20: -100.0 | K20: 0 | L20: 0 | M20: 0
A21: 220、自然资源海洋气象等支出 | B21: 4,974 | C21: 450 | D21: 572 | E21: 3,952 | F21: 2,356 | G21: =F21/B21*100 -> 47.4 | H21: 2,318 | I21: 38 | J21: 1.6 | K21: 269 | L21: 139 | M21: 130 | N21: =M21/L21*100 -> 93.5
A22: 221、住房保障支出 | B22: 18,868 | D22: 183 | E22: 18,685 | F22: 9,369 | G22: 49.7 | H22: 8,739 | I22: 630 | J22: 7.2 | K22: 244 | L22: 821 | M22: -577 | N22: -70.3
A23: 222、粮油物资储备支出 | B23: 2,700 | E23: 2,700 | F23: 800 | G23: 29.6 | H23: 1,329 | I23: -529 | J23: -39.8 | K23: 0 | L23: 0 | M23: 0
A24: 224、灾害防治及应急管理支出 | B24: 2,852 | C24: 89 | D24: 46 | E24: 2,717 | F24: 1,439 | G24: 50.5 | H24: 2,282 | I24: -843 | J24: -36.9 | K24: 79 | L24: 334 | M24: -255 | N24: -76.3
A25: 232、债务付息支出 | B25: 4,260 | E25: 4,260 | F25: 1,998 | G25: 46.9 | H25: 2,047 | I25: -49 | J25: -2.4 | K25: 0 | L25: 572 | M25: -572 | N25: -100.0
A26: 233、债务发行费用支出 | B26: 40 | E26: 40 | F26: 28 | G26: 70.0 | H26: 0 | I26: 28 | K26: 0 | L26: 0 | M26: 0
A27: 227、预备费 | B27: 0 | I27: 0 | K27: 0 | L27: 0 | M27: 0
A28: 229、其他支出 | B28: 4,885 | E28: 4,885 | F28: 751 | G28: =F28/B28*100 -> 15.4 | H28: 1,483 | I28: -732 | J28: =I28/H28*100 -> -49.4 | K28: 9 | L28: 49 | M28: -40 | N28: =M28/L28*100 -> -81.6
A29: 一、一般公共预算支出合计 | B29: =SUM(B6:B28) -> 913,326 | C29: 311,977 | D29: 66,337 | E29: 535,012 | F29: 471,207 | G29: 51.6 | H29: =SUM(H6:H28) -> 529,689 | I29: -58,482 | J29: -11.0 | K29: 36,789 | L29: 34,452 | M29: 2,337 | N29: 6.8
A30: 二、政府性基金预算支出 | B30: 352,806 | F30: 151,793 | G30: 43.0 | H30: 286,192 | I30: -134,399 | J30: -47.0 | K30: 6,243 | L30: 23,981 | M30: -17,738 | N30: -74.0
A31: 三、国有资本经营支出 | B31: 5,666 | F31: 308 | G31: 5.4 | H31: 527 | I31: -219 | J31: -41.6 | K31: 0 | L31: 9 | M31: -9 | N31: -100.0
A32: 四、债务还本支出 | B32: 49,680 | F32: 51,130 | G32: 102.9 | H32: 7,999 | I32: 43,131 | J32: 539.2 | K32: 9,225 | L32: 1,770 | M32: 7,455 | N32: 421.2
A33: 支出合计 | B33: =B29+B30+B31+B32 -> 1,321,478 | C33: =C29+C30+C31 -> 311,977 | D33: =D29+D30+D31 -> 66,337 | E33: =E29+E30+E31 -> 535,012 | F33: =F29+F30+F31+F32 -> 674,438 | G33: 51.0 | H33: 824,407 | I33: -149,969 | J33: -18.2 | K33: 52,257 | L33: 60,212 | M33: -7,955 | N33: -13.2
F36: 471,207
F37: 151,793
F38: 308 | H38: 0.00 | K38: 0.00 | L38: 0.00
F39: 51,130
F42: =F29-F36 -> 0.00
F43: 0.00
F44: 0.00
F45: 0.00
